[Event "*** SCC Grand Prix: Titled Tuesday Blitz"]
[Site "Chess.com"]
[Date "2020.06.09"]
[Round "5"]
[White "BulletMercenary"]
[Black "MusicCityMaster"]
[Result "0-1"]
[WhiteElo "2122"]
[BlackElo "2326"]
[TimeControl "180+1"]
[EndTime "9:56:54 PDT"]
[Termination "MusicCityMaster won by resignation"]

1. e4 {[%clk 0:03:00.9]} 1... c5 {[%clk 0:02:57.7]} 2. c3 {[%clk 0:02:58.2]}
2... Nf6 {[%clk 0:02:55.7]} 3. Bd3 {[%clk 0:02:57.5]} 3... d6 {[%clk 0:02:43.3]}
4. h3 {[%clk 0:02:48.9]} 4... Nc6 {[%clk 0:02:42.4]} 5. Qe2 {[%clk 0:02:46.5]}
5... g6 {[%clk 0:02:21.4]} 6. Nf3 {[%clk 0:02:44]} 6... Bg7 {[%clk 0:02:21.6]}
7. Bc2 {[%clk 0:02:44.1]} 7... O-O {[%clk 0:02:21.7]} 8. d4 {[%clk 0:02:44.3]}
8... cxd4 {[%clk 0:02:16.4]} 9. cxd4 {[%clk 0:02:45.2]} 9... Nb4 {[%clk
0:02:16.4]} 10. Bb3 {[%clk 0:02:40.9]} 10... b6 {[%clk 0:02:13.3]} 11. O-O
{[%clk 0:02:40]} 11... Ba6 {[%clk 0:02:12.9]} 12. Bc4 {[%clk 0:02:37.6]} 12...
Bxc4 {[%clk 0:02:11.5]} 13. Qxc4 {[%clk 0:02:38.5]} 13... a5 {[%clk 0:02:11.6]}
14. Nc3 {[%clk 0:02:36.4]} 14... Rc8 {[%clk 0:02:04.5]} 15. Qe2 {[%clk
0:02:33.1]} 15... d5 {[%clk 0:01:48.3]} 16. e5 {[%clk 0:02:22.5]} 16... Ne8
{[%clk 0:01:35.5]} 17. a3 {[%clk 0:02:02.1]} 17... Nc6 {[%clk 0:01:33.7]} 18.
Bg5 {[%clk 0:02:02.6]} 18... Nc7 {[%clk 0:01:30]} 19. Rac1 {[%clk 0:02:00.3]}
19... Qd7 {[%clk 0:01:27.4]} 20. Rc2 {[%clk 0:01:43.2]} 20... Ne6 {[%clk
0:01:21.8]} 21. Be3 {[%clk 0:01:41.8]} 21... f6 {[%clk 0:01:18.5]} 22. Qb5
{[%clk 0:01:32.4]} 22... fxe5 {[%clk 0:01:09.2]} 23. Nxd5 {[%clk 0:01:30]} 23...
exd4 {[%clk 0:00:47.6]} 24. Nxb6 {[%clk 0:00:51.7]} 24... Qb7 {[%clk 0:00:41.2]}
25. Qd5 {[%clk 0:00:51.3]} 25... Qxb6 {[%clk 0:00:27.7]} 26. Qxe6+ {[%clk
0:00:51.4]} 26... Kh8 {[%clk 0:00:28.1]} 27. Nxd4 {[%clk 0:00:50.9]} 27... Bxd4
{[%clk 0:00:25.3]} 28. Rxc6 {[%clk 0:00:42.1]} 28... Rxc6 {[%clk 0:00:20.5]} 29.
Bxd4+ {[%clk 0:00:42.2]} 29... Qxd4 {[%clk 0:00:20.1]} 30. Qxc6 {[%clk
0:00:42.4]} 30... Qxb2 {[%clk 0:00:20]} 31. a4 {[%clk 0:00:41.7]} 31... Qd4
{[%clk 0:00:18.2]} 32. Qb5 {[%clk 0:00:37.8]} 32... Rf5 {[%clk 0:00:17.7]} 33.
Qb8+ {[%clk 0:00:36.4]} 33... Kg7 {[%clk 0:00:18.1]} 34. Qe8 {[%clk 0:00:33.1]}
34... Rf7 {[%clk 0:00:16.6]} 35. Qc6 {[%clk 0:00:30.3]} 35... h5 {[%clk
0:00:16.5]} 36. Qc2 {[%clk 0:00:29.8]} 36... Rf4 {[%clk 0:00:14.9]} 37. Re1
{[%clk 0:00:28.8]} 37... e5 {[%clk 0:00:14.4]} 38. Qc7+ {[%clk 0:00:27.1]} 38...
Kh6 {[%clk 0:00:13.2]} 39. Qxe5 {[%clk 0:00:26.9]} 39... Qxe5 {[%clk 0:00:13.5]}
40. Rxe5 {[%clk 0:00:26.6]} 40... Rxa4 {[%clk 0:00:14.4]} 41. Re7 {[%clk
0:00:24.8]} 41... Ra1+ {[%clk 0:00:14]} 42. Kh2 {[%clk 0:00:24.4]} 42... g5
{[%clk 0:00:14.5]} 43. Re5 {[%clk 0:00:24]} 43... Kg6 {[%clk 0:00:14.3]} 44. h4
{[%clk 0:00:23.5]} 44... g4 {[%clk 0:00:13.6]} 45. Rg5+ {[%clk 0:00:22.4]} 45...
Kh6 {[%clk 0:00:13.4]} 46. Kg3 {[%clk 0:00:22.3]} 46... a4 {[%clk 0:00:13.9]}
47. f4 {[%clk 0:00:20.4]} 47... gxf3 {[%clk 0:00:13.3]} 48. gxf3 {[%clk
0:00:20.4]} 48... Rg1+ {[%clk 0:00:12.5]} 49. Kf4 {[%clk 0:00:20.1]} 49... Rxg5
{[%clk 0:00:12.5]} 50. hxg5+ {[%clk 0:00:21]} 50... Kg6 {[%clk 0:00:13.1]} 0-1

[Event "*** SCC Grand Prix: Titled Tuesday Blitz"]
[Site "Chess.com"]
[Date "2020.06.09"]
[Round "5"]
[White "CrushingKings"]
[Black "carlesdc96"]
[Result "0-1"]
[WhiteElo "2515"]
[BlackElo "2739"]
[TimeControl "180+1"]
[EndTime "9:56:55 PDT"]
[Termination "carlesdc96 won by resignation"]

1. e4 {[%clk 0:03:00.9]} 1... e6 {[%clk 0:02:59.5]} 2. Nf3 {[%clk 0:03:00.8]}
2... d5 {[%clk 0:02:59.6]} 3. Nc3 {[%clk 0:03:01.3]} 3... Nf6 {[%clk 0:02:59.3]}
4. e5 {[%clk 0:03:01.5]} 4... Ne4 {[%clk 0:02:59.6]} 5. Ne2 {[%clk 0:03:00.9]}
5... Bc5 {[%clk 0:02:59.1]} 6. d4 {[%clk 0:02:58.4]} 6... Be7 {[%clk 0:02:59.6]}
7. h4 {[%clk 0:02:51.6]} 7... c5 {[%clk 0:02:59.1]} 8. c3 {[%clk 0:02:50.8]}
8... Nc6 {[%clk 0:02:58.3]} 9. g3 {[%clk 0:02:43.2]} 9... cxd4 {[%clk
0:02:45.8]} 10. Nexd4 {[%clk 0:02:40]} 10... Qb6 {[%clk 0:02:32.6]} 11. Bg2
{[%clk 0:02:28.5]} 11... Bd7 {[%clk 0:02:22.3]} 12. O-O {[%clk 0:02:20.8]} 12...
h6 {[%clk 0:02:17.5]} 13. Be3 {[%clk 0:01:47.8]} 13... Qc7 {[%clk 0:02:06.4]}
14. Nxc6 {[%clk 0:01:32.2]} 14... bxc6 {[%clk 0:02:02.4]} 15. h5 {[%clk
0:01:27.7]} 15... Rb8 {[%clk 0:02:00.2]} 16. Qc2 {[%clk 0:01:24.9]} 16... O-O
{[%clk 0:01:51.9]} 17. c4 {[%clk 0:01:18]} 17... Qb7 {[%clk 0:01:46.9]} 18. b3
{[%clk 0:01:17]} 18... a5 {[%clk 0:01:46.1]} 19. Nh2 {[%clk 0:00:59.3]} 19... c5
{[%clk 0:01:19.9]} 20. Bxe4 {[%clk 0:00:18.2]} 20... dxe4 {[%clk 0:01:19.2]} 21.
Qd2 {[%clk 0:00:18.5]} 21... Kh7 {[%clk 0:01:00.4]} 22. Qxa5 {[%clk 0:00:17.1]}
22... f5 {[%clk 0:00:53]} 23. Qd2 {[%clk 0:00:16.5]} 23... Be8 {[%clk
0:00:51.5]} 24. a4 {[%clk 0:00:15.1]} 24... Bxh5 {[%clk 0:00:47.7]} 25. a5
{[%clk 0:00:15.7]} 25... Qa6 {[%clk 0:00:45.1]} 26. Qd7 {[%clk 0:00:14.7]} 26...
Rb7 {[%clk 0:00:45]} 27. Qa4 {[%clk 0:00:12.3]} 27... Rfb8 {[%clk 0:00:43.2]}
28. Rfb1 {[%clk 0:00:12.3]} 28... Be2 {[%clk 0:00:37.4]} 29. Rb2 {[%clk
0:00:10.9]} 29... Bxc4 {[%clk 0:00:34.7]} 30. Rc1 {[%clk 0:00:06.5]} 30... Bxb3
{[%clk 0:00:31.4]} 31. Qa1 {[%clk 0:00:06.9]} 31... c4 {[%clk 0:00:27.3]} 32.
Bd4 {[%clk 0:00:06.9]} 32... Ra8 {[%clk 0:00:26.8]} 33. Bc3 {[%clk 0:00:06.6]}
33... Bb4 {[%clk 0:00:25.1]} 34. Bxb4 {[%clk 0:00:06.2]} 34... Rxb4 {[%clk
0:00:26]} 35. Rd2 {[%clk 0:00:06.7]} 35... Qxa5 {[%clk 0:00:25.4]} 36. Qd4
{[%clk 0:00:07]} 36... c3 {[%clk 0:00:17.7]} 37. Qxc3 {[%clk 0:00:04.3]} 37...
Rc4 {[%clk 0:00:18]} 38. Qb2 {[%clk 0:00:04.4]} 38... Rxc1+ {[%clk 0:00:17.9]}
39. Qxc1 {[%clk 0:00:04.8]} 39... Qa1 {[%clk 0:00:18.1]} 40. Qxa1 {[%clk
0:00:05.1]} 40... Rxa1+ {[%clk 0:00:18.5]} 41. Kg2 {[%clk 0:00:05.9]} 41... Bd5
{[%clk 0:00:18.3]} 42. Kh3 {[%clk 0:00:03.9]} 42... g5 {[%clk 0:00:18.4]} 43.
Nf1 {[%clk 0:00:02.8]} 43... Rxf1 {[%clk 0:00:17.2]} 0-1

[Event "*** SCC Grand Prix: Titled Tuesday Blitz"]
[Site "Chess.com"]
[Date "2020.06.09"]
[Round "5"]
[White "FrenchMonster2002"]
[Black "csati17"]
[Result "0-1"]
[WhiteElo "2413"]
[BlackElo "2585"]
[TimeControl "180+1"]
[EndTime "9:56:55 PDT"]
[Termination "csati17 won on time"]

1. e4 {[%clk 0:03:00.9]} 1... e6 {[%clk 0:02:59.7]} 2. d4 {[%clk 0:03:01.1]}
2... d5 {[%clk 0:03:00.2]} 3. e5 {[%clk 0:03:01.8]} 3... c5 {[%clk 0:02:59.8]}
4. c3 {[%clk 0:03:02.6]} 4... Nc6 {[%clk 0:03:00.3]} 5. Nf3 {[%clk 0:03:03.3]}
5... Qb6 {[%clk 0:03:01.1]} 6. Bd3 {[%clk 0:03:03.7]} 6... Bd7 {[%clk
0:03:00.1]} 7. O-O {[%clk 0:03:03.8]} 7... g6 {[%clk 0:02:57.5]} 8. Nbd2 {[%clk
0:02:48.5]} 8... a5 {[%clk 0:02:53.2]} 9. dxc5 {[%clk 0:02:46.5]} 9... Bxc5
{[%clk 0:02:54.1]} 10. Nb3 {[%clk 0:02:45.1]} 10... Bf8 {[%clk 0:02:53.4]} 11.
Nbd4 {[%clk 0:02:42.8]} 11... Nxd4 {[%clk 0:02:43.2]} 12. cxd4 {[%clk
0:02:38.7]} 12... h6 {[%clk 0:02:39.2]} 13. Be3 {[%clk 0:02:23.2]} 13... Ne7
{[%clk 0:02:36.7]} 14. Rc1 {[%clk 0:02:18.8]} 14... Nc6 {[%clk 0:02:33.9]} 15.
Qe2 {[%clk 0:01:58.7]} 15... Nb4 {[%clk 0:02:32.4]} 16. Rfd1 {[%clk 0:01:34.1]}
16... Nxa2 {[%clk 0:02:32.2]} 17. Rc5 {[%clk 0:01:22.8]} 17... Bxc5 {[%clk
0:02:15.4]} 18. dxc5 {[%clk 0:01:23.7]} 18... Qc7 {[%clk 0:02:09.1]} 19. Nd4
{[%clk 0:01:06]} 19... Nb4 {[%clk 0:02:08.8]} 20. Nb5 {[%clk 0:00:54.9]} 20...
Bxb5 {[%clk 0:02:04.2]} 21. Bxb5+ {[%clk 0:00:55.8]} 21... Nc6 {[%clk
0:01:57.2]} 22. f4 {[%clk 0:00:36.1]} 22... O-O {[%clk 0:00:57.6]} 23. Bf2
{[%clk 0:00:24.5]} 23... Ne7 {[%clk 0:00:52.2]} 24. Bd3 {[%clk 0:00:17.4]} 24...
a4 {[%clk 0:00:47.8]} 25. Qg4 {[%clk 0:00:16.5]} 25... a3 {[%clk 0:00:42.7]} 26.
bxa3 {[%clk 0:00:15.7]} 26... Rxa3 {[%clk 0:00:42.2]} 27. Bf1 {[%clk 0:00:11.6]}
27... Rfa8 {[%clk 0:00:37.4]} 28. h4 {[%clk 0:00:10.9]} 28... h5 {[%clk
0:00:33.1]} 29. Qg5 {[%clk 0:00:09.1]} 29... Nf5 {[%clk 0:00:32.6]} 30. g4
{[%clk 0:00:06.4]} 30... hxg4 {[%clk 0:00:33.5]} 31. Qxg4 {[%clk 0:00:05.3]}
31... Ng7 {[%clk 0:00:30.5]} 32. Rc1 {[%clk 0:00:03.7]} 32... Ra1 {[%clk
0:00:29.9]} 33. Rxa1 {[%clk 0:00:03.6]} 33... Rxa1 {[%clk 0:00:30.8]} 34. Kg2
{[%clk 0:00:04]} 34... Qa5 {[%clk 0:00:29.5]} 35. Qg5 {[%clk 0:00:03.5]} 35...
Ra2 {[%clk 0:00:25]} 36. Qg3 {[%clk 0:00:02.5]} 36... Qxc5 {[%clk 0:00:25]} 37.
Qf3 {[%clk 0:00:02.1]} 37... Nf5 {[%clk 0:00:24.1]} 38. Kg1 {[%clk 0:00:02]}
38... Qc2 {[%clk 0:00:21.9]} 39. Qg2 {[%clk 0:00:01.4]} 39... Qd1 {[%clk
0:00:20]} 40. h5 {[%clk 0:00:02]} 40... Qxh5 {[%clk 0:00:20.1]} 41. Qh2 {[%clk
0:00:01.5]} 41... Qxh2+ {[%clk 0:00:19.9]} 42. Kxh2 {[%clk 0:00:02.4]} 42...
Rxf2+ {[%clk 0:00:20.5]} 43. Kg1 {[%clk 0:00:03.3]} 43... Rxf1+ {[%clk
0:00:21.1]} 0-1

[Event "*** SCC Grand Prix: Titled Tuesday Blitz"]
[Site "Chess.com"]
[Date "2020.06.09"]
[Round "5"]
[White "joksijoksi"]
[Black "MomchilPetkov"]
[Result "0-1"]
[WhiteElo "2355"]
[BlackElo "2540"]
[TimeControl "180+1"]
[EndTime "9:56:55 PDT"]
[Termination "MomchilPetkov won by resignation"]

1. d4 {[%clk 0:03:00.9]} 1... Nf6 {[%clk 0:02:59.7]} 2. c4 {[%clk 0:03:01.1]}
2... e6 {[%clk 0:02:59.9]} 3. Nc3 {[%clk 0:03:01.7]} 3... Bb4 {[%clk 0:02:59.8]}
4. f3 {[%clk 0:03:02.1]} 4... c5 {[%clk 0:02:59.1]} 5. a3 {[%clk 0:03:01]} 5...
Bxc3+ {[%clk 0:02:53.4]} 6. bxc3 {[%clk 0:03:01.9]} 6... O-O {[%clk 0:02:49.8]}
7. e4 {[%clk 0:03:01.1]} 7... d6 {[%clk 0:02:50]} 8. Bd3 {[%clk 0:02:56.5]} 8...
Nc6 {[%clk 0:02:49]} 9. Be3 {[%clk 0:02:56.5]} 9... e5 {[%clk 0:02:48.3]} 10. d5
{[%clk 0:02:56.3]} 10... Ne7 {[%clk 0:02:48.1]} 11. Ne2 {[%clk 0:02:56.3]} 11...
Ng6 {[%clk 0:02:33.8]} 12. O-O {[%clk 0:02:55.8]} 12... Nh5 {[%clk 0:02:29.9]}
13. Qd2 {[%clk 0:02:46.9]} 13... h6 {[%clk 0:02:09.7]} 14. Ng3 {[%clk
0:02:42.1]} 14... Nhf4 {[%clk 0:02:06.4]} 15. Nf5 {[%clk 0:02:41.8]} 15... Qf6
{[%clk 0:01:45.3]} 16. g3 {[%clk 0:02:33.4]} 16... Nxd3 {[%clk 0:01:31.1]} 17.
Qxd3 {[%clk 0:02:34.3]} 17... Ne7 {[%clk 0:01:31.2]} 18. g4 {[%clk 0:02:11.9]}
18... Nxf5 {[%clk 0:01:05.6]} 19. gxf5 {[%clk 0:02:12.8]} 19... Kh7 {[%clk
0:01:04.7]} 20. Qd2 {[%clk 0:02:07.3]} 20... g6 {[%clk 0:00:55.1]} 21. Bxh6
{[%clk 0:02:06.6]} 21... Rg8 {[%clk 0:00:55.5]} 22. Kh1 {[%clk 0:01:21.1]} 22...
gxf5 {[%clk 0:00:53.9]} 23. Be3 {[%clk 0:00:47.5]} 23... f4 {[%clk 0:00:52.6]}
24. Bf2 {[%clk 0:00:47.2]} 24... Bh3 {[%clk 0:00:35.3]} 25. Rg1 {[%clk
0:00:47.1]} 25... Qh6 {[%clk 0:00:35.1]} 26. Qe2 {[%clk 0:00:41.5]} 26... Qh5
{[%clk 0:00:25.1]} 27. a4 {[%clk 0:00:31.8]} 27... a5 {[%clk 0:00:25.2]} 28.
Rab1 {[%clk 0:00:30.1]} 28... Rxg1+ {[%clk 0:00:23.2]} 29. Rxg1 {[%clk
0:00:28.2]} 29... Rg8 {[%clk 0:00:22.5]} 30. Rxg8 {[%clk 0:00:24]} 30... Kxg8
{[%clk 0:00:23.4]} 31. Be1 {[%clk 0:00:24.7]} 31... b6 {[%clk 0:00:22.3]} 32.
Qf2 {[%clk 0:00:22.1]} 32... Qg5 {[%clk 0:00:19.4]} 33. Qg1 {[%clk 0:00:21.4]}
33... Qxg1+ {[%clk 0:00:17.8]} 34. Kxg1 {[%clk 0:00:22.3]} 34... f6 {[%clk
0:00:17.8]} 35. Bd2 {[%clk 0:00:16.1]} 35... Bd7 {[%clk 0:00:17.1]} 36. Kg2
{[%clk 0:00:15.9]} 36... Bxa4 {[%clk 0:00:17.5]} 37. Kf2 {[%clk 0:00:13.7]}
37... Bb3 {[%clk 0:00:17.8]} 38. Kg2 {[%clk 0:00:10.6]} 38... Bxc4 {[%clk
0:00:18]} 39. Bc1 {[%clk 0:00:11.1]} 39... b5 {[%clk 0:00:17.1]} 40. Kf2 {[%clk
0:00:10.5]} 40... b4 {[%clk 0:00:17.3]} 41. Bb2 {[%clk 0:00:06.5]} 41... a4
{[%clk 0:00:17.3]} 0-1

[Event "*** SCC Grand Prix: Titled Tuesday Blitz"]
[Site "Chess.com"]
[Date "2020.06.09"]
[Round "5"]
[White "SergioGarciaFuentes"]
[Black "PauloFanha"]
[Result "1-0"]
[WhiteElo "2231"]
[BlackElo "1997"]
[TimeControl "180+1"]
[EndTime "9:56:55 PDT"]
[Termination "SergioGarciaFuentes won on time"]

1. d4 {[%clk 0:03:00.9]} 1... d5 {[%clk 0:03:00.1]} 2. c4 {[%clk 0:02:59.2]}
2... e6 {[%clk 0:02:59.4]} 3. Nf3 {[%clk 0:02:58]} 3... Nf6 {[%clk 0:02:55.5]}
4. g3 {[%clk 0:02:57.2]} 4... Bb4+ {[%clk 0:02:52.8]} 5. Bd2 {[%clk 0:02:56]}
5... Be7 {[%clk 0:02:51.6]} 6. Bg2 {[%clk 0:02:55.1]} 6... O-O {[%clk
0:02:49.9]} 7. Qc2 {[%clk 0:02:49.6]} 7... c6 {[%clk 0:02:47.9]} 8. O-O {[%clk
0:02:48]} 8... b6 {[%clk 0:02:46]} 9. Nc3 {[%clk 0:02:24.9]} 9... Ba6 {[%clk
0:02:40.6]} 10. cxd5 {[%clk 0:02:10.3]} 10... cxd5 {[%clk 0:02:32.6]} 11. Ne5
{[%clk 0:02:09.4]} 11... Nfd7 {[%clk 0:02:26.9]} 12. Rfd1 {[%clk 0:01:55.2]}
12... Nxe5 {[%clk 0:02:19.8]} 13. dxe5 {[%clk 0:01:55.7]} 13... Qc8 {[%clk
0:02:11.7]} 14. Rac1 {[%clk 0:01:46.9]} 14... Nc6 {[%clk 0:02:04.6]} 15. Nxd5
{[%clk 0:01:20.2]} 15... exd5 {[%clk 0:01:50.2]} 16. Qxc6 {[%clk 0:01:19.8]}
16... Qxc6 {[%clk 0:01:47.4]} 17. Rxc6 {[%clk 0:01:19.4]} 17... Bxe2 {[%clk
0:01:38.8]} 18. Re1 {[%clk 0:01:07.9]} 18... Bb5 {[%clk 0:01:27.9]} 19. Rc7
{[%clk 0:01:07.4]} 19... Bd8 {[%clk 0:01:24.6]} 20. Rcc1 {[%clk 0:01:00.3]}
20... Be7 {[%clk 0:01:14.5]} 21. Rc7 {[%clk 0:00:55.3]} 21... Bd8 {[%clk
0:01:12.7]} 22. Rc2 {[%clk 0:00:45.2]} 22... Be7 {[%clk 0:00:59.8]} 23. Bxd5
{[%clk 0:00:44.8]} 23... Rad8 {[%clk 0:00:54.4]} 24. Be4 {[%clk 0:00:45.1]}
24... Rxd2 {[%clk 0:00:30.3]} 25. Rxd2 {[%clk 0:00:43]} 25... Bb4 {[%clk
0:00:30.1]} 26. Red1 {[%clk 0:00:41.7]} 26... Bxd2 {[%clk 0:00:27.9]} 27. Rxd2
{[%clk 0:00:42.2]} 27... g6 {[%clk 0:00:21.3]} 28. f4 {[%clk 0:00:39.2]} 28...
Rc8 {[%clk 0:00:16.1]} 29. Kf2 {[%clk 0:00:39.4]} 29... Bc6 {[%clk 0:00:14.3]}
30. Rc2 {[%clk 0:00:34.1]} 30... Bd7 {[%clk 0:00:12.1]} 31. Rxc8+ {[%clk
0:00:34.4]} 31... Bxc8 {[%clk 0:00:11.9]} 32. Ke3 {[%clk 0:00:34.3]} 32... Kf8
{[%clk 0:00:11.4]} 33. Kd4 {[%clk 0:00:34.2]} 33... Ke7 {[%clk 0:00:09.7]} 34.
Bd5 {[%clk 0:00:34.2]} 34... Bf5 {[%clk 0:00:08.6]} 35. b4 {[%clk 0:00:30.8]}
35... h6 {[%clk 0:00:07.8]} 36. a4 {[%clk 0:00:26]} 36... g5 {[%clk 0:00:06.8]}
37. fxg5 {[%clk 0:00:22.4]} 37... hxg5 {[%clk 0:00:07]} 38. h4 {[%clk 0:00:23]}
38... gxh4 {[%clk 0:00:05.9]} 39. gxh4 {[%clk 0:00:23.3]} 39... Bg4 {[%clk
0:00:05]} 40. Ke4 {[%clk 0:00:20.9]} 40... Bd1 {[%clk 0:00:02.7]} 41. a5 {[%clk
0:00:19.6]} 41... bxa5 {[%clk 0:00:02.1]} 42. bxa5 {[%clk 0:00:19.5]} 1-0

[Event "*** SCC Grand Prix: Titled Tuesday Blitz"]
[Site "Chess.com"]
[Date "2020.06.09"]
[Round "5"]
[White "diablanni"]
[Black "Belka1989"]
[Result "0-1"]
[WhiteElo "2332"]
[BlackElo "2459"]
[TimeControl "180+1"]
[EndTime "9:56:56 PDT"]
[Termination "Belka1989 won on time"]

1. e4 {[%clk 0:02:59.8]} 1... e5 {[%clk 0:02:59.4]} 2. Nf3 {[%clk 0:02:58.8]}
2... Nc6 {[%clk 0:03:00]} 3. d4 {[%clk 0:02:56.8]} 3... exd4 {[%clk 0:03:00.9]}
4. Nxd4 {[%clk 0:02:54.8]} 4... Qh4 {[%clk 0:03:00.8]} 5. Nc3 {[%clk 0:02:53.5]}
5... Bb4 {[%clk 0:02:59.2]} 6. Be2 {[%clk 0:02:52.2]} 6... Qxe4 {[%clk
0:02:59.1]} 7. Nb5 {[%clk 0:02:49.9]} 7... Bxc3+ {[%clk 0:02:59.4]} 8. bxc3
{[%clk 0:02:48.9]} 8... Kd8 {[%clk 0:02:59.4]} 9. O-O {[%clk 0:02:30.5]} 9...
Nf6 {[%clk 0:02:55.9]} 10. Be3 {[%clk 0:02:20.2]} 10... Re8 {[%clk 0:02:09.9]}
11. Re1 {[%clk 0:02:10.3]} 11... Qd5 {[%clk 0:02:07.1]} 12. c4 {[%clk
0:01:48.4]} 12... Qxd1 {[%clk 0:02:03.5]} 13. Raxd1 {[%clk 0:01:48.1]} 13... a6
{[%clk 0:01:42.6]} 14. Nc3 {[%clk 0:01:42.8]} 14... h6 {[%clk 0:01:35.7]} 15. c5
{[%clk 0:01:35.4]} 15... Ke7 {[%clk 0:01:32.1]} 16. Bf4 {[%clk 0:01:30.5]} 16...
Kf8 {[%clk 0:01:14.3]} 17. Bxc7 {[%clk 0:01:29.8]} 17... Kg8 {[%clk 0:01:13.9]}
18. Bc4 {[%clk 0:01:25.7]} 18... b5 {[%clk 0:00:34.8]} 19. cxb6 {[%clk
0:00:46.4]} 19... Bb7 {[%clk 0:00:34]} 20. Nd5 {[%clk 0:00:32.7]} 20... Ne4
{[%clk 0:00:25]} 21. Ne3 {[%clk 0:00:21.2]} 21... Nc5 {[%clk 0:00:14.2]} 22. Nf5
{[%clk 0:00:16.1]} 22... Ne4 {[%clk 0:00:05.5]} 23. Bxf7+ {[%clk 0:00:07.7]}
23... Kxf7 {[%clk 0:00:04.8]} 24. Rxe4 {[%clk 0:00:07.7]} 24... Rxe4 {[%clk
0:00:05.7]} 25. Nd6+ {[%clk 0:00:07.8]} 25... Ke6 {[%clk 0:00:05.9]} 26. Nxe4
{[%clk 0:00:08.2]} 26... Na5 {[%clk 0:00:05.1]} 27. Nd6 {[%clk 0:00:08]} 27...
Bc6 {[%clk 0:00:04.7]} 28. Re1+ {[%clk 0:00:08.1]} 28... Kf6 {[%clk 0:00:04.3]}
29. c4 {[%clk 0:00:07.3]} 29... Kg6 {[%clk 0:00:03.7]} 30. f4 {[%clk 0:00:04.6]}
30... Nb7 {[%clk 0:00:03.9]} 31. g3 {[%clk 0:00:04.1]} 31... Nc5 {[%clk
0:00:03]} 32. Re8 {[%clk 0:00:02.6]} 32... Rxe8 {[%clk 0:00:02.3]} 33. Nxe8
{[%clk 0:00:02.7]} 33... Nb7 {[%clk 0:00:03.2]} 34. Nd6 {[%clk 0:00:02.7]} 34...
a5 {[%clk 0:00:02.8]} 35. Nxb7 {[%clk 0:00:01.6]} 35... Bxb7 {[%clk 0:00:03.7]}
36. Kf2 {[%clk 0:00:02.1]} 36... Kf5 {[%clk 0:00:04.6]} 37. c5 {[%clk
0:00:01.5]} 37... Ke4 {[%clk 0:00:05.5]} 38. a3 {[%clk 0:00:01.2]} 38... Bc6
{[%clk 0:00:06.4]} 0-1

[Event "*** SCC Grand Prix: Titled Tuesday Blitz"]
[Site "Chess.com"]
[Date "2020.06.09"]
[Round "5"]
[White "memer5334"]
[Black "marianokar"]
[Result "1-0"]
[WhiteElo "2241"]
[BlackElo "2383"]
[TimeControl "180+1"]
[EndTime "9:56:56 PDT"]
[Termination "memer5334 won on time"]

1. d4 {[%clk 0:03:00.9]} 1... Nf6 {[%clk 0:02:54.1]} 2. c4 {[%clk 0:02:58.8]}
2... e6 {[%clk 0:02:52.3]} 3. Nf3 {[%clk 0:02:58.1]} 3... d5 {[%clk 0:02:51.3]}
4. Nc3 {[%clk 0:02:56.9]} 4... dxc4 {[%clk 0:02:49.6]} 5. Bg5 {[%clk 0:02:55.5]}
5... h6 {[%clk 0:02:39.4]} 6. Bxf6 {[%clk 0:02:53.6]} 6... Qxf6 {[%clk
0:02:40.3]} 7. e3 {[%clk 0:02:52.5]} 7... a6 {[%clk 0:02:34.7]} 8. Bxc4 {[%clk
0:02:52]} 8... g6 {[%clk 0:02:29.5]} 9. O-O {[%clk 0:02:51.7]} 9... Bg7 {[%clk
0:02:30]} 10. Ne5 {[%clk 0:02:51.8]} 10... O-O {[%clk 0:02:29.5]} 11. f4 {[%clk
0:02:47.2]} 11... Qe7 {[%clk 0:02:28.5]} 12. Rc1 {[%clk 0:02:45.5]} 12... c5
{[%clk 0:02:22.9]} 13. Ne4 {[%clk 0:02:33.9]} 13... cxd4 {[%clk 0:02:20.2]} 14.
exd4 {[%clk 0:02:34.3]} 14... Rd8 {[%clk 0:02:14.6]} 15. Rf2 {[%clk 0:02:22.9]}
15... Nc6 {[%clk 0:01:59.4]} 16. Nxc6 {[%clk 0:02:20.7]} 16... bxc6 {[%clk
0:02:00.3]} 17. Rd2 {[%clk 0:02:18.2]} 17... Qa7 {[%clk 0:01:52.5]} 18. Kh1
{[%clk 0:02:00.5]} 18... Rxd4 {[%clk 0:01:49.5]} 19. Rxd4 {[%clk 0:01:57.5]}
19... Qxd4 {[%clk 0:01:49.4]} 20. Qxd4 {[%clk 0:01:52.5]} 20... Bxd4 {[%clk
0:01:48.2]} 21. Bb3 {[%clk 0:01:49.5]} 21... Bxb2 {[%clk 0:01:40.7]} 22. Rxc6
{[%clk 0:01:47.6]} 22... Bb7 {[%clk 0:01:41.1]} 23. Rc4 {[%clk 0:01:44.7]} 23...
Bd5 {[%clk 0:01:09]} 24. Rc2 {[%clk 0:01:41.1]} 24... Bg7 {[%clk 0:00:57.7]} 25.
Bxd5 {[%clk 0:01:27.4]} 25... exd5 {[%clk 0:00:58.6]} 26. Nd6 {[%clk 0:01:21.2]}
26... Bf8 {[%clk 0:00:52.4]} 27. Nb7 {[%clk 0:01:19.2]} 27... Rb8 {[%clk
0:00:48.1]} 28. Rc7 {[%clk 0:01:05.9]} 28... Re8 {[%clk 0:00:38.4]} 29. g3
{[%clk 0:00:43.9]} 29... Re7 {[%clk 0:00:35.4]} 30. Rxe7 {[%clk 0:00:35.6]}
30... Bxe7 {[%clk 0:00:36.3]} 31. Na5 {[%clk 0:00:36.5]} 31... f6 {[%clk
0:00:29.1]} 32. Kg2 {[%clk 0:00:36.6]} 32... Kf7 {[%clk 0:00:29.6]} 33. Kf3
{[%clk 0:00:37]} 33... Ke6 {[%clk 0:00:30.1]} 34. Nb3 {[%clk 0:00:36.4]} 34...
Kd6 {[%clk 0:00:24.3]} 35. Ke3 {[%clk 0:00:36.8]} 35... f5 {[%clk 0:00:23.2]}
36. h4 {[%clk 0:00:33.2]} 36... Bf6 {[%clk 0:00:22.2]} 37. Kd3 {[%clk
0:00:30.4]} 37... Kc6 {[%clk 0:00:19.1]} 38. a4 {[%clk 0:00:27.1]} 38... Kd6
{[%clk 0:00:14.1]} 39. Ke3 {[%clk 0:00:19.2]} 39... h5 {[%clk 0:00:10.7]} 40.
Kd3 {[%clk 0:00:18.5]} 1-0